Workbook

Sheet Mittelhilfstabelle
A2: Stunde | B2: Wind | C2: Luftfeuchtigkeit | D2: Luftdruck | E2: Taupunkttemperatur | F2: Bewölkung | H2: Stunde | I2: Wind | J2: Luftfeuchtigkeit | K2: Luftdruck | L2: Taupunkttemperatur | M2: Bewölkung
A3: 00 | B3: 0 | C3: 97 | D3: 1027.1 | E3: 7.3 | F3: 8 | H3: 00 | I3: 0 | J3: 98 | K3: 1024.8 | L3: 7.5 | M3: 8
A4: 01 | B4: 1 | C4: 98 | D4: 1027.2 | E4: 7.5 | F4: 8 | H4: 01 | I4: 0 | J4: 98 | K4: 1024.8 | L4: 7.5 | M4: 6
A5: 02 | B5: 0 | C5: 98 | D5: 1027 | E5: 7.3 | F5: 7 | H5: 02 | I5: 0 | J5: 98 | K5: 1024.4 | L5: 7.2 | M5: 8
A6: 03 | B6: 0 | C6: 98 | D6: 1026.4 | E6: 7.3 | F6: 7 | H6: 03 | I6: 0 | J6: 98 | K6: 1024.1 | L6: 7.1 | M6: 7
A7: 04 | B7: 1 | C7: 98 | D7: 1026.5 | E7: 7 | F7: 7 | H7: 04 | I7: 0 | J7: 98 | K7: 1023.7 | L7: 7.1 | M7: 7
A8: 05 | B8: 1 | C8: 98 | D8: 1026.3 | E8: 6.8 | F8: 7 | H8: 05 | I8: 0 | J8: 99 | K8: 1023.5 | L8: 7.5 | M8: 7
A9: 06 | B9: 0 | C9: 98 | D9: 1026.9 | E9: 6.6 | F9: 7 | H9: 06 | I9: 1 | J9: 98 | K9: 1023.5 | L9: 7.1 | M9: 7
A10: 07 | B10: 1 | C10: 98 | D10: 1026.5 | E10: 6.7 | F10: 7 | H10: 07 | I10: 0 | J10: 99 | K10: 1023.8 | L10: 7.6 | M10: 7
A11: 08 | B11: 0 | C11: 98 | D11: 1027 | E11: 7 | F11: 7 | H11: 08 | I11: 0 | J11: 99 | K11: 1023.8 | L11: 8.4 | M11: 6
A12: 09 | B12: 1 | C12: 95 | D12: 1027.3 | E12: 7.7 | F12: 7 | H12: 09
A13: 10 | B13: 1 | C13: 93 | D13: 1027.1 | E13: 8.6 | F13: 7 | H13: 10
A14: 11 | B14: 1 | C14: 88 | D14: 1027.2 | E14: 9.7 | F14: 5 | H14: 11
A15: 12 | B15: 1 | C15: 84 | D15: 1027 | E15: 10.4 | F15: 4 | H15: 12
A16: 13 | B16: 1 | C16: 82 | D16: 1026.3 | E16: 11.1 | F16: 5 | H16: 13
A17: 14 | B17: 1 | C17: 83 | D17: 1025.9 | E17: 10.9 | F17: 6 | H17: 14
A18: 15 | B18: 1 | C18: 87 | D18: 1025.6 | E18: 11.4 | F18: 7 | H18: 15
A19: 16 | B19: 1 | C19: 88 | D19: 1025.6 | E19: 10.5 | F19: 7 | H19: 16
A20: 17 | B20: 0 | C20: 92 | D20: 1025.4 | E20: 9.7 | F20: 8 | H20: 17
A21: 18 | B21: 0 | C21: 94 | D21: 1025.5 | E21: 9.2 | F21: 7 | H21: 18
A22: 19 | B22: 1 | C22: 95 | D22: 1025.4 | E22: 8.7 | F22: 7 | H22: 19
A23: 20 | B23: 0 | C23: 97 | D23: 1025.6 | E23: 8.5 | F23: 7 | H23: 20
A24: 21 | B24: 0 | C24: 97 | D24: 1025.3 | E24: 8.2 | F24: 7 | H24: 21
A25: 22 | B25: 0 | C25: 98 | D25: 1025.2 | E25: 8 | F25: 7 | H25: 22
A26: 23 | B26: 0 | C26: 98 | D26: 1025 | E26: 7.8 | F26: 8 | H26: 23
A27: Mittel | B27: =ROUND(AVERAGE(B3:B26),1) -> 0.5 | C27: =ROUND(AVERAGE(C3:C26),1) -> 93.8 | D27: =ROUND(AVERAGE(D3:D26),1) -> 1026.3 | E27: =AVERAGE(E3:E26) -> 8.495833333 | F27: =ROUND(AVERAGE(F3:F26),1) -> 6.8 | H27: Mittel | I27: =ROUND(AVERAGE(I3:I26),1) -> 0.1 | J27: =ROUND(AVERAGE(J3:J26),1) -> 98.3 | K27: =ROUND(AVERAGE(K3:K26),1) -> 1024 | L27: =AVERAGE(L3:L26) -> 7.444444444 | M27: =ROUND(AVERAGE(M3:M26),1) -> 7
E29: 2014-10-31 | L29: 2014-11-01
A32: Stunde | B32: Wind | C32: Luftfeuchtigkeit | D32: Luftdruck | E32: Taupunkttemperatur | F32: Bewölkung | H32: Stunde | I32: Wind | J32: Luftfeuchtigkeit | K32: Luftdruck | L32: Taupunkttemperatur | M32: Bewölkung
A33: 00 | B33: 1 | C33: 80 | D33: 1020 | E33: 0.3 | F33: 0 | H33: 00 | I33: 1 | J33: 94 | K33: 1022.4 | L33: 3.6 | M33: 7
A34: 01 | B34: 1 | C34: 81 | D34: 1019.8 | E34: 0.4 | F34: 0 | H34: 01 | I34: 1 | J34: 94 | K34: 1022.3 | L34: 3.8 | M34: 7
A35: 02 | B35: 2 | C35: 83 | D35: 1019.7 | E35: 0.6 | F35: 0 | H35: 02 | I35: 1 | J35: 93 | K35: 1022.9 | L35: 3.6 | M35: 7
A36: 03 | B36: 1 | C36: 86 | D36: 1019.3 | E36: 0 | F36: 0 | H36: 03 | I36: 0 | J36: 94 | K36: 1022.8 | L36: 4.1 | M36: 7
A37: 04 | B37: 2 | C37: 90 | D37: 1018.6 | E37: 0.1 | F37: 0 | H37: 04 | I37: 1 | J37: 93 | K37: 1023 | L37: 3.4 | M37: 7
A38: 05 | B38: 2 | C38: 90 | D38: 1018.3 | E38: 0.4 | F38: 0 | H38: 05 | I38: 1 | J38: 94 | K38: 1023.5 | L38: 4.1 | M38: 3
A39: 06 | B39: 2 | C39: 90 | D39: 1018.5 | E39: 0.5 | F39: 0 | H39: 06 | I39: 2 | J39: 93 | K39: 1023.3 | L39: 4.1 | M39: 7
A40: 07 | B40: 2 | C40: 92 | D40: 1018.9 | E40: 0.1 | F40: 0 | H40: 07 | I40: 1 | J40: 92 | K40: 1024.3 | L40: 4 | M40: 8
A41: 08 | B41: 1 | C41: 92 | D41: 1019.5 | E41: 1.1 | F41: 0 | H41: 08 | I41: 1 | J41: 91 | K41: 1024.7 | L41: 4.7 | M41: 8
A42: 09 | B42: 1 | C42: 89 | D42: 1019.7 | E42: 2.4 | F42: 0 | H42: 09 | I42: 0 | J42: 92 | K42: 1025.8 | L42: 5.7 | M42: 8
A43: 10 | B43: 2 | C43: 87 | D43: 1019.8 | E43: 3.2 | F43: 0 | H43: 10 | I43: 0 | J43: 90 | K43: 1026.1 | L43: 5.9 | M43: 8
A44: 11 | B44: 2 | C44: 86 | D44: 1019.9 | E44: 4.2 | F44: 1 | H44: 11 | I44: 1 | J44: 88 | K44: 1026.2 | L44: 6.1 | M44: 8
A45: 12 | B45: 1 | C45: 80 | D45: 1019.69 | E45: 4.8 | F45: 0 | H45: 12 | I45: 0 | J45: 88 | K45: 1026.2 | L45: 6.4 | M45: 8
A46: 13 | B46: 3 | C46: 81 | D46: 1019.4 | E46: 4.9 | F46: 0 | H46: 13 | I46: 1 | J46: 88 | K46: 1026.1 | L46: 6.8 | M46: 8
A47: 14 | B47: 2 | C47: 81 | D47: 1019.4 | E47: 5.3 | F47: 0 | H47: 14 | I47: 1 | J47: 89 | K47: 1026.1 | L47: 7.2 | M47: 8
A48: 15 | B48: 2 | C48: 83 | D48: 1019.3 | E48: 5.1 | F48: 0 | H48: 15 | I48: 1 | J48: 89 | K48: 1026.3 | L48: 7.4 | M48: 8
A49: 16 | B49: 2 | C49: 86 | D49: 1019.2 | E49: 4.5 | F49: 1 | H49: 16 | I49: 0 | J49: 90 | K49: 1026.3 | L49: 7.4 | M49: 8
A50: 17 | B50: 2 | C50: 89 | D50: 1019.4 | E50: 3.8 | F50: 1 | H50: 17 | I50: 0 | J50: 92 | K50: 1026.5 | L50: 7.2 | M50: 8
A51: 18 | B51: 1 | C51: 91 | D51: 1019.8 | E51: 3.6 | F51: 0 | H51: 18 | I51: 0 | J51: 92 | K51: 1027.1 | L51: 7.2 | M51: 8
A52: 19 | B52: 1 | C52: 93 | D52: 1020.5 | E52: 3.2 | F52: 0 | H52: 19 | I52: 0 | J52: 93 | K52: 1027.2 | L52: 7.3 | M52: 8
A53: 20 | B53: 1 | C53: 94 | D53: 1021 | E53: 3.1 | F53: 1 | H53: 20 | I53: 1 | J53: 93 | K53: 1027.1 | L53: 7 | M53: 8
A54: 21 | B54: 1 | C54: 94 | D54: 1021.3 | E54: 3.8 | F54: 6 | H54: 21 | I54: 0 | J54: 95 | K54: 1027.4 | L54: 7.3 | M54: 8
A55: 22 | B55: 0 | C55: 94 | D55: 1021.7 | E55: 3.8 | F55: 5 | H55: 22 | I55: 0 | J55: 94 | K55: 1027.5 | L55: 7.3 | M55: 8
A56: 23 | B56: 0 | C56: 95 | D56: 1021.9 | E56: 3.8 | F56: 3 | H56: 23 | I56: 0 | J56: 96 | K56: 1027.5 | L56: 7.4 | M56: 8
A57: Mittel | B57: =ROUND(AVERAGE(B33:B56),1) -> 1.5 | C57: =ROUND(AVERAGE(C33:C56),1) -> 87.8 | D57: =ROUND(AVERAGE(D33:D56),1) -> 1019.8 | E57: =ROUND(AVERAGE(E33:E56),1) -> 2.6 | F57: =ROUND(AVERAGE(F33:F56),1) -> 0.8 | H57: Mittel | I57: =ROUND(AVERAGE(I33:I56),1) -> 0.6 | J57: =ROUND(AVERAGE(J33:J56),1) -> 92 | K57: =ROUND(AVERAGE(K33:K56),1) -> 1025.4 | L57: =ROUND(AVERAGE(L33:L56),1) -> 5.8 | M57: =ROUND(AVERAGE(M33:M56),1) -> 7.5
E59: 2014-10-29 | L59: 2014-10-30

Sheet Kurztabelle
A2: Wetterwarte: Köttewitz | L2: Monat: | M2: Oktober | R2: Jahr: | U2: 2014
A4: Dat. | B4: TTT | C4: TxTx | D4: TnTn | E4: Tg | F4: Umin. | G4: UU | H4: NN | I4: RRRR | J4: Art | L4: sss | M4: PPPP | N4: eee | O4: fff | R4: Tage mit | V4: fk | W4: Summe
J5: * | O5: Bft | P5: SS | Q5: Art ( D ) | R5: RR | S5: Ge | T5: Bf6 | U5: Bf8 | V5: Bft | W5: Gewitter
A6: 01. | B6: 15.4 | C6: 19.9 | D6: 11.7 | E6: - | F6: 69 | G6: 91 | H6: 5.4 | I6: . | L6: 1.7 | M6: 1026.6 | N6: 13.9 | O6: 1 | V6: 3 | AA6: max >=30,0°C | AB6: max >=25,0°C | AC6: max <0,0°C | AE6: RR >=0,1 mm | AF6: RR >=1,0 mm | AG6: RR >=3,0 mm | AH6: RR >=10,0 mm | AI6: RR >=20,0 mm
A7: 02. | B7: 14 | C7: 19.3 | D7: 11.4 | E7: 10 | F7: 71 | G7: 91 | H7: 5.6 | I7: . | L7: 1.8 | M7: 1029 | N7: 12.8 | O7: 0 | V7: 2 | AA7: =COUNTIF(C6:C15,">=30") -> 0 | AB7: =COUNTIF(C6:C15,">=25") -> 0 | AC7: =COUNTIF(C6:C15,"<0") -> 0 | AE7: =COUNTIF(I6:I15,">=0,1") -> 1 | AF7: =COUNTIF(I6:I15,">=1") -> 1 | AG7: =COUNTIF(I6:I15,">=3") -> 0 | AH7: =COUNTIF(I6:I15,">=10") -> 0 | AI7: =COUNTIF(I6:I15,">=20") -> 0
A8: 03. | B8: 11.8 | C8: 18 | D8: 7.4 | E8: 6.1 | F8: 75 | G8: 93 | H8: 1 | I8: . | L8: 5.4 | M8: 1027.6 | N8: 10.7 | O8: 1 | V8: 3 | AA8: =COUNTIF(C18:C27,">=30") -> 0 | AB8: =COUNTIF(C18:C27,">=25") -> 0 | AC8: =COUNTIF(C18:C27,"<0") -> 0 | AE8: =COUNTIF(I18:I27,">=0,1") -> 7 | AF8: =COUNTIF(I18:I27,">=1") -> 6 | AG8: =COUNTIF(I18:I27,">=3") -> 2 | AH8: =COUNTIF(I18:I27,">=10") -> 1 | AI8: =COUNTIF(I18:I27,">=20") -> 0
A9: 04. | B9: 10.7 | C9: 16.8 | D9: 6.6 | E9: 5.6 | F9: 71 | G9: 89 | H9: 0.4 | I9: . | L9: 4.6 | M9: 1022.3 | N9: 8.9 | O9: 1 | V9: 4 | AA9: =COUNTIF(C30:C40,">=30") -> 0 | AB9: =COUNTIF(C30:C40,">=25") -> 0 | AC9: =COUNTIF(C30:C40,"<0") -> 0 | AE9: =COUNTIF(I30:I40,">=0,1") -> 3 | AF9: =COUNTIF(I30:I40,">=1") -> 2 | AG9: =COUNTIF(I30:I40,">=3") -> 2 | AH9: =COUNTIF(I30:I40,">=10") -> 1 | AI9: =COUNTIF(I30:I40,">=20") -> 0
A10: 05. | B10: 11.7 | C10: 15.8 | D10: 7 | E10: 6.1 | F10: 79 | G10: 91 | H10: 3.4 | I10: . | L10: 1.4 | M10: 1019.2 | N10: 10.2 | O10: 1 | V10: 4
A11: 06. | B11: 12.1 | C11: 16.2 | D11: 8.9 | E11: 6.7 | F11: 71 | G11: 86 | H11: 2.2 | I11: . | L11: 1.4 | M11: 1016.1 | N11: 9.9 | O11: 2 | V11: 5 | AA11: min <0,0°C | AB11: min <0-10,0°C | AE11: rel.Lf. 14h >=70% | AG11: rel.Lf. 14h <=40%
A12: 07. | B12: 13.1 | C12: 15.7 | D12: 10.7 | E12: 8.9 | F12: 77 | G12: 84 | H12: 6.2 | I12: . | L12: 1 | M12: 1011.1 | N12: 10.4 | O12: 3 | T12: 1 | V12: 6 | AA12: =COUNTIF(D6:D15,"<0") -> 0 | AB12: =COUNTIF(D6:D15,"<=-10") -> 0 | AE12: =COUNTIF(F6:F15,">=70") -> 9 | AG12: =COUNTIF(F6:F15,"<=40") -> 0
A13: 08. | B13: 14.3 | C13: 16.6 | D13: 12.5 | E13: 11.1 | F13: 81 | G13: 89 | H13: 7 | I13: 1.5 | J13: R | L13: 0.3 | M13: 1012.5 | N13: 12.5 | O13: 2 | R13: 1 | V13: 5 | AA13: =COUNTIF(D18:D27,"<0") -> 0 | AB13: =COUNTIF(D18:D27,"<=-10") -> 0 | AE13: =COUNTIF(F18:F27,">=70") -> 9 | AG13: =COUNTIF(F18:F27,"<=40") -> 0
A14: 09. | B14: 15.7 | C14: 20 | D14: 12.6 | E14: 11.1 | F14: 72 | G14: 86 | H14: 4.2 | I14: . | L14: 4.9 | M14: 1010.7 | N14: 13.3 | O14: 2 | V14: 5 | AA14: =COUNTIF(D30:D40,"<0") -> 0 | AB14: =COUNTIF(D30:D40,"<=-10") -> 0 | AE14: =COUNTIF(F30:F40,">=70") -> 9 | AG14: =COUNTIF(F30:F40,"<=40") -> 0
A15: 10. | B15: 14.5 | C15: 18.1 | D15: 11.7 | E15: 10.6 | F15: 84 | G15: 93 | H15: 6.1 | I15: 0 | L15: . | M15: 1015.9 | N15: 13.5 | O15: 1 | V15: 3
A16: Su | B16: =SUM(B6:B15) -> 133.3 | C16: =SUM(C6:C15) -> 176.4 | D16: 100.5 | E16: 76.2 | F16: XXX | G16: XXX | H16: =SUM(H6:H15) -> 41.5 | I16: =SUM(I6:I15) -> 1.5 | J16: XX | L16: =SUM(L6:L15) -> 22.5 | M16: =SUM(M6:M15) -> 10191 | N16: 116.1 | O16: 14 | P16: =SUM(P6:P15) -> 0 | Q16: X | R16: =SUM(R6:R15) -> 1 | S16: =SUM(S6:S15) -> 0 | T16: 1 | U16: 0 | V16: XXX | AA16: ohne Sonne | AB16: Son. 0,1-0,9 | AC16: Son. >=10,0 | AE16: Sch. >=1 cm | AF16: Sch. >=3 cm | AG16: Sch. >=10 cm
A17: Mi | B17: =AVERAGE(B6:B15) -> 13.33 | C17: =AVERAGE(C6:C15) -> 17.64 | D17: 10.05 | E17: 8.466666667 | F17: XXX | G17: 89.3 | H17: 4.15 | I17: XXX | J17: XX | L17: =L16/10 -> 2.25 | M17: =AVERAGE(M6:M15) -> 1019.1 | N17: =AVERAGE(N6:N15) -> 11.61 | O17: 1.4 | P17: =ROUND(AVERAGE(P6:P15),1) ->  | Q17: X | R17: XX | S17: XX | T17: XX | U17: XX | V17: =AVERAGE(V6:V15) -> 4 | AA17: =COUNTIF(L6:L15,".") -> 1 | AB17: =COUNTIF(L6:L15,"<1") -> 1 | AC17: =COUNTIF(L6:L15,">=10") -> 0 | AE17: =COUNTIF(P6:P15,">=1") -> 0 | AF17: =COUNTIF(P6:P15,">=3") -> 0 | AG17: =COUNTIF(P6:P15,">=10") -> 0
A18: 11. | B18: 15.8 | C18: 19.7 | D18: 12.8 | E18: 12.8 | F18: 79 | G18: 92 | H18: 7.3 | I18: 1.1 | J18: R | L18: 0.2 | M18: 1014 | N18: 14.5 | O18: 1 | R18: 1 | V18: 3 | AA18: =COUNTIF(L18:L27,".") -> 0 | AB18: =COUNTIF(L18:L27,"<1") -> 3 | AC18: =COUNTIF(L18:L27,">=10") -> 0 | AE18: =COUNTIF(P18:P27,">=1") -> 0 | AF18: =COUNTIF(P18:P27,">=3") -> 0 | AG18: =COUNTIF(P18:P27,">=10") -> 0
A19: 12. | B19: 14.3 | C19: 18.6 | D19: 11.1 | E19: 9.4 | F19: 75 | G19: 89 | H19: 4.6 | I19: . | L19: 1.8 | M19: 1015.1 | N19: 12.6 | O19: 1 | V19: 3 | AA19: =COUNTIF(L30:L40,".") -> 3 | AB19: =COUNTIF(L30:L40,"<1") -> 2 | AC19: =COUNTIF(L30:L40,">=10") -> 0 | AE19: =COUNTIF(P30:P40,">=1") -> 0 | AF19: =COUNTIF(P30:P40,">=3") -> 0 | AG19: =COUNTIF(P30:P40,">=10") -> 0
A20: 13. | B20: 14.8 | C20: 18.9 | D20: 11 | E20: 8.9 | F20: 80 | G20: 91 | H20: 6.4 | I20: 11.8 | J20: R | L20: 0.9 | M20: 1009.4 | N20: 13.2 | O20: 2 | R20: 1 | V20: 5
A21: 14. | B21: 14.5 | C21: 19.1 | D21: 10.7 | E21: 9.4 | F21: 71 | G21: 91 | H21: 5.8 | I21: 2.8 | J21: R | L21: 1.7 | M21: 1009.1 | N21: 13.1 | O21: 1 | R21: 1 | V21: 4 | AA21: Max TT | AB21: Max TxTx | AC21: Min TgTg | AE21: Max RR
A22: 15. | B22: 12.7 | C22: 17.4 | D22: 9.4 | E22: 8.3 | F22: 79 | G22: 95 | H22: 7 | I22: 9.7 | J22: R | L22: 1.3 | M22: 1008.1 | N22: 11.8 | O22: 1 | R22: 1 | S22: 1 | V22: 4 | AA22: =MAX(B6:B15,B18:B27,B30:B40) -> 15.8 | AB22: =MAX(C6:C15,C18:C27,C30:C40) -> 20.2 | AC22: =MIN(E6:E15,E18:E27,E30:E40) -> -1.7 | AE22: =MAX(I6:I15,I18:I27,I30:I40) -> 12.8
A23: 16. | B23: 12.6 | C23: 17.6 | D23: 8.7 | E23: 8.3 | F23: 79 | G23: 94 | H23: 6.8 | I23: 1.8 | J23: R | L23: 1 | M23: 1007.6 | N23: 11.4 | O23: 1 | R23: 1 | V23: 5 | AA23: Min TT | AB23: Min TnTn | AC23: Min U14 | AE23: Max SS
A24: 17. | B24: 13.6 | C24: 16.6 | D24: 11.7 | E24: 10 | F24: 79 | G24: 89 | H24: 6.3 | I24: 0.1 | J24: R | L24: 0.3 | M24: 1012.9 | N24: 11.8 | O24: 1 | R24: 1 | V24: 5 | AA24: =MIN(B6:B15,B18:B27,B30:B40) -> 4.6 | AB24: =MIN(D6:D15,D18:D27,D30:D40) -> 1.2 | AC24: =MIN(F6:F15,F18:F27,F30:F40) -> 54 | AE24: =MAX(P6:P15,P18:P27,P30:P40) -> 0
A25: 18. | B25: 13.4 | C25: 18.3 | D25: 9.9 | E25: 8.9 | F25: 71 | G25: 90 | H25: 4.6 | I25: . | L25: 1.5 | M25: 1023.4 | N25: 11.7 | O25: 1 | V25: 4
A26: 19. | B26: 14.8 | C26: 20.2 | D26: 10 | E26: 6.7 | F26: 73 | G26: 88 | H26: 0.8 | I26: 2.9 | J26: R | L26: 3.3 | M26: 1018.8 | N26: 12.6 | O26: 2 | R26: 1 | V26: 5
A27: 20. | B27: 14.7 | C27: 18.3 | D27: 11.8 | E27: 10.6 | F27: 59 | G27: 78 | H27: 6.2 | I27: . | L27: 3.4 | M27: 1018.4 | N27: 11.1 | O27: 2 | T27: 1 | V27: 6
A28: Su | B28: =SUM(B18:B27) -> 141.2 | C28: =SUM(C18:C27) -> 184.7 | D28: 107.1 | E28: 93.3 | F28: XXX | G28: XXX | H28: =SUM(H18:H27) -> 55.8 | I28: =SUM(I18:I27) -> 30.2 | J28: XX | L28: =SUM(L18:L27) -> 15.4 | M28: =SUM(M18:M27) -> 10136.8 | N28: 123.8 | O28: 13 | P28: =SUM(P18:P27) -> 0 | Q28: X | R28: =SUM(R18:R27) -> 7 | S28: =SUM(S18:S27) -> 1 | T28: 1 | U28: 0 | V28: XXX
A29: Mi | B29: =AVERAGE(B18:B27) -> 14.12 | C29: =AVERAGE(C18:C27) -> 18.47 | D29: 10.71 | E29: 9.33 | F29: 74.5 | G29: 89.7 | H29: 5.58 | I29: XXX | J29: XX | L29: =L28/10 -> 1.54 | M29: =AVERAGE(M18:M27) -> 1013.68 | N29: =AVERAGE(N18:N27) -> 12.38 | O29: 1.3 | P29: =ROUND(AVERAGE(P18:P27),1) ->  | Q29: X | R29: XX | S29: XX | T29: XX | U29: XX | V29: =AVERAGE(V18:V27) -> 4.4
A30: 21. | B30: 12.5 | C30: 15.9 | D30: 9.1 | E30: 8.4 | F30: 54 | G30: 79 | H30: 6.8 | I30: 4 | J30: R | L30: 0.9 | M30: 1007.4 | N30: 8.8 | O30: 2 | R30: 1 | T30: 1 | V30: 7
A31: 22. | B31: 7.3 | C31: 9.3 | D31: 4.6 | E31: 5 | F31: 83 | G31: 92 | H31: 7.9 | I31: 12.8 | J31: R | L31: . | M31: 1006.5 | N31: 6 | O31: 3 | R31: 1 | T31: 1 | V31: 7
A32: 23. | B32: 9.8 | C32: 11 | D32: 8.3 | E32: 7.8 | F32: 89 | G32: 94 | H32: 8 | I32: 0.2 | J32: R | L32: . | M32: 1019.5 | N32: 9 | O32: 2 | R32: 1 | V32: 5
A33: 24. | B33: 7.5 | C33: 9.8 | D33: 3.3 | E33: 1.6 | F33: 88 | G33: 93 | H33: 5.5 | I33: . | L33: 0.2 | M33: 1024.2 | N33: 6.6 | O33: 1 | V33: 3
A34: 25. | B34: 5.9 | C34: 9.7 | D34: 1.5 | E34: 0.6 | F34: 84 | G34: 93 | H34: 4 | I34: . | L34: 1.1 | M34: 1022.6 | N34: 4.7 | O34: 2 | V34: 5
A35: 26. | B35: 9.1 | C35: 12.9 | D35: 5.9 | E35: 4.4 | F35: 82 | G35: 91 | H35: 6.7 | I35: . | L35: 1 | M35: 1027.6 | N35: 7.7 | O35: 1 | V35: 4
A36: 27. | B36: 6.8 | C36: 11.8 | D36: 4.1 | E36: 1.7 | F36: 76 | G36: 90 | H36: 3.9 | I36: . | L36: 3.2 | M36: 1028.5 | N36: 5.4 | O36: 2 | V36: 4
A37: 28. | B37: 5.4 | C37: 11 | D37: 2.6 | E37: 0 | F37: 61 | G37: 83 | H37: 1.1 | I37: . | L37: 3.3 | M37: 1023.4 | N37: 2.8 | O37: 2 | V37: 5
A38: 29. | B38: 4.6 | C38: 8.6 | D38: 1.2 | E38: -1.7 | F38: 75 | G38: 88 | H38: 0.8 | I38: . | L38: 3.2 | M38: 1019.8 | N38: 2.6 | O38: 2 | V38: 4
A39: 30. | B39: 7.1 | C39: 9.3 | D39: 4.2 | E39: 2.8 | F39: 87 | G39: 92 | H39: 7.5 | I39: . | L39: . | M39: 1025.4 | N39: 5.8 | O39: 1 | V39: 3
A40: 31. | B40: 9.4 | C40: 14.1 | D40: 6.6 | E40: 5.6 | F40: 81 | G40: 93 | H40: 6.8 | I40: . | L40: 1.3 | M40: 1026.3 | N40: 8.5 | O40: 1 | V40: 2
A41: Su | B41: =SUM(B30:B40) -> 85.4 | C41: =SUM(C30:C40) -> 123.4 | D41: =SUM(D30:D40) -> 51.4 | E41: =SUM(E30:E40) -> 36.2 | F41: XXX | G41: =SUM(G30:G40) -> 988 | H41: =SUM(H30:H40) -> 59 | I41: =SUM(I30:I40) -> 17 | J41: XX | L41: =SUM(L30:L40) -> 14.2 | M41: =SUM(M30:M40) -> 11231.2 | N41: =SUM(N30:N40) -> 67.9 | O41: =SUM(O30:O40) -> 19 | P41: =SUM(P30:P40) -> 0 | Q41: X | R41: =SUM(R30:R40) -> 3 | S41: =SUM(S30:S40) -> 0 | T41: =SUM(T30:T40) -> 2 | U41: =SUM(U30:U40) -> 0 | V41: XXX
A42: Mi | B42: =AVERAGE(B30:B40) -> 7.763636364 | C42: =AVERAGE(C30:C40) -> 11.21818182 | D42: =AVERAGE(D30:D40) -> 4.672727273 | E42: =AVERAGE(E30:E40) -> 3.290909091 | F42: XXX | G42: =AVERAGE(G30:G40) -> 89.81818182 | H42: =AVERAGE(H30:H40) -> 5.363636364 | I42: XXX | J42: XX | L42: XXX | M42: =AVERAGE(M30:M40) -> 1021.018182 | N42: =AVERAGE(N30:N40) -> 6.172727273 | O42: =AVERAGE(O30:O40) -> 1.727272727 | P42: =ROUND(AVERAGE(P30:P40),1) ->  | Q42: X | R42: XX | S42: XX | T42: XX | U42: XX | V42: =AVERAGE(V30:V40) -> 4.454545455
A43: MSu | B43: =SUM(B16+B28+B41) -> 359.9 | C43: =SUM(C16+C28+C41) -> 484.5 | D43: =SUM(D16+D28+D41) -> 259 | E43: =SUM(E16+E28+E41) -> 205.7 | F43: XXX | G43: XXX, | H43: =SUM(H16+H28+H41) -> 156.3 | I43: =SUM(I16+I28+I41) -> 48.7 | J43: XX | L43: =SUM(L16+L28+L41) -> 52.1 | M43: =SUM(M16+M28+M41) -> 31559 | N43: =SUM(N16+N28+N41) -> 307.8 | O43: XXX | P43: =SUM(P16+P28+P41) -> 0 | Q43: X | R43: =SUM(R16+R28+R41) -> 11 | S43: =SUM(S16+S28+S41) -> 1 | T43: =SUM(T16+T28+T41) -> 4 | U43: =SUM(U16+U28+U41) -> 0 | V43: XXX
A44: MMi | B44: =AVERAGE(B6:B15,B18:B27,B30:B40) -> 11.60967742 | C44: =AVERAGE(C6:C15,C18:C27,C30:C40) -> 15.62903226 | D44: =AVERAGE(D6:D15,D18:D27,D30:D40) -> 8.35483871 | E44: =AVERAGE(E6:E15,E18:E27,E30:E40) -> 6.856666667 | F44: XXX | G44: =AVERAGE(G6:G15,G18:G27,G30:G40) -> 89.61290323 | H44: =AVERAGE(H6:H15,H18:H27,H30:H40) -> 5.041935484 | I44: XXXXX | J44: XX | L44: XXXX | M44: =AVERAGE(M6:M15,M18:M27,M30:M40) -> 1018.032258 | N44: =AVERAGE(N6:N15,N18:N27,N30:N40) -> 9.929032258 | O44: =AVERAGE(O6:O15,O18:O27,O30:O40) -> 1.483870968 | P44: =ROUND(AVERAGE(P6:P15,P18:P27,P30:P40),1) ->  | Q44: X | R44: XX | S44: XX | T44: XX | U44: XX | V44: =AVERAGE(V17,V29,V42) -> 4.284848485
B46: Norm | C46: % v N.- | D46: Abw. | E46: Zahl der Tage | L46: Niederschlag mm | P46: Sonnensch.-dauer Std
B47: wert | C47: wert | D47: K | E47: Max.d.Lufttemp.°C | L47: >/= 0,1 | O47: =SUM(AE7:AE9) -> 11 | P47: ohne Sonne | V47: =SUM(AA17:AA19) -> 4
A48: TTT | B48: 9.8 | C48: XXXX | D48: =SUM(B44-B48) -> 1.809677419 | E48: Tropentag/Hitzetag | I48: =SUM(AA7:AA9) -> 0 | L48: >/= 1,0 | O48: =SUM(AF7:AF9) -> 9 | P48: 0,1 bis 0,9 | V48: =SUM(AB17:AB19) -> 6
A49: RRR | B49: 43 | C49: =SUM(I43*100/B49) -> 113.255814 | D49: XXXX | E49: Sommertag | I49: =SUM(AB7:AB9) -> 0 | L49: >/= 3,0 | O49: =SUM(AG7:AG9) -> 4 | P49: >/= 10,0 | V49: =SUM(AC17:AC19) -> 0
A50: sss | B50: 120 | C50: =SUM(L43*100/B50) -> 43.41666667 | D50: XXXX | E50: Eistag | I50: =SUM(AC7:AC9) -> 0 | L50: >/=10,0 | O50: =SUM(AH7:AH9) -> 2 | P50: Schneedecke cm
A51: astr. | D51: XXXX | E51: Polartag | I51: 0 | L51: >/= 20,0 | O51: =SUM(AI7:AI9) -> 0 | P51: >/= 1 | V51: =SUM(AE17:AE19) -> 0
A52: mgl. | B52: 333 | C52: =SUM(L43*100/B52) -> 15.64564565 | D52: XXXX | E52: Min.d.Lufttemp.°C | L52: Rel. Luftfeuchte 14 Uhr | P52: >/= 3 | V52: =SUM(AF17:AF19) -> 0
A53: sss | D53: XXXX | E53: Frosttag | I53: =SUM(AA12:AA14) -> 0 | L53: >/=70% | O53: =SUM(AE12:AE14) -> 27 | P53: >/= 10 | V53: =SUM(AG17:AG19) -> 0
E54: Tropennacht | I54: 0 | L54: </=40% | O54: =SUM(AG12:AG14) -> 0
E57: Unter "Tage mit" sind die Angaben Bft 6 & Bft 8 nicht 10 min. - Mittel sonder 2,5 s - Werte.
E58: Wenn ein Wert auch mit einem 10 min. - Wert erreicht wird, erfolgt eine rote Markierung.
E59: Dies gilt rückwirkend auf November 2012.
F113: Tage mit Bft 6 /8 eigentlich in 10 min. - Mittel

Sheet Sichtst.
E1: Sichtweitenstatistik
B5: Wetterstation: Köttewitz | F5: Monat: | G5: Oktober | K5: Jahr: | L5: 2014
A7: Dat. | B7: Nebeldauer | C7: Nebel | D7: Dunst | E7: Sicht | F7: Sicht | G7: Sicht | H7: Sicht
B8: in St. u. Min. | E8: mittel | F8: normal | G8: gut | H8: sehr gut
A9: 01. | B9: - | C9: - | D9: 1 | E9: 1 | F9: 1 | G9: - | H9: - | N9: =IF(ISNUMBER(B9),B9*24," ") ->  | O9: =IF(ISNUMBER(N9),IF(N9<1,1," ")," ") ->  | P9: =IF(ISNUMBER(N9),IF(N9<8,2," ")," ") ->  | Q9: =IF(ISNUMBER(N9),IF(N9<24,3," ")," ") ->  | R9: =MIN(O9:Q9) -> 0
A10: 02. | B10: - | C10: =IF(R10=1,1,"-") -> - | D10: - | E10: 1 | F10: 1 | G10: - | H10: - | R10: 0
A11: 03. | B11: 01:20:00 | C11: 1 | D11: 1 | E11: 1 | F11: 1 | G11: - | H11: - | N11: 1.333333333 | P11: 2 | Q11: 3 | R11: 2
A12: 04. | B12: - | C12: - | D12: - | E12: 1 | F12: 1 | G12: - | H12: - | R12: 0
A13: 05. | B13: - | C13: - | D13: 1 | E13: 1 | F13: 1 | G13: - | H13: - | R13: 0
A14: 06. | B14: - | C14: - | D14: - | E14: 1 | F14: 1 | G14: - | H14: - | R14: 0
A15: 07. | B15: - | C15: - | D15: - | E15: 1 | F15: 1 | G15: - | H15: - | R15: 0
A16: 08. | B16: - | C16: - | D16: - | E16: 1 | F16: 1 | G16: - | H16: - | R16: 0
A17: 09. | B17: - | C17: - | D17: - | E17: 1 | F17: 1 | G17: - | H17: - | R17: 0
A18: 10. | B18: - | C18: - | D18: - | E18: 1 | F18: 1 | G18: - | H18: - | R18: 0
A19: 11. | B19: - | C19: - | D19: - | E19: 1 | F19: - | G19: - | H19: - | R19: 0
A20: 12. | B20: - | C20: - | D20: - | E20: 1 | F20: 1 | G20: - | H20: - | R20: 0
A21: 13. | B21: - | C21: - | D21: - | E21: 1 | F21: 1 | G21: - | H21: - | R21: 0
A22: 14. | B22: - | C22: - | D22: 1 | E22: 1 | F22: 1 | G22: 1 | H22: - | R22: 0
A23: 15. | B23: - | C23: - | D23: 1 | E23: 1 | F23: 1 | G23: 1 | H23: - | R23: 0
A24: 16. | B24: - | C24: - | D24: 1 | E24: 1 | F24: 1 | G24: - | H24: - | R24: 0
A25: 17. | B25: - | C25: - | D25: - | E25: 1 | F25: 1 | G25: - | H25: - | R25: 0
A26: 18. | B26: - | C26: - | D26: - | E26: - | F26: 1 | G26: - | H26: - | R26: 0
A27: 19. | B27: - | C27: - | D27: - | E27: - | F27: 1 | G27: 1 | H27: - | R27: 0
A28: 20. | B28: - | C28: - | D28: - | E28: - | F28: 1 | G28: 1 | H28: - | R28: 0
A29: 21. | B29: - | C29: - | D29: - | E29: 1 | F29: 1 | G29: - | H29: - | R29: 0
A30: 22. | B30: - | C30: - | D30: - | E30: 1 | F30: 1 | G30: - | H30: - | R30: 0
A31: 23. | B31: - | C31: - | D31: - | E31: 1 | F31: - | G31: - | H31: - | R31: 0
A32: 24. | B32: - | C32: - | D32: - | E32: 1 | F32: 1 | G32: - | H32: - | R32: 0
A33: 25. | B33: - | C33: - | D33: - | E33: - | F33: 1 | G33: - | H33: - | R33: 0
A34: 26. | B34: - | C34: - | D34: - | E34: - | F34: 1 | G34: - | H34: - | R34: 0
A35: 27. | B35: - | C35: - | D35: - | E35: - | F35: 1 | G35: - | H35: - | R35: 0
A36: 28. | B36: - | C36: - | D36: - | E36: - | F36: 1 | G36: - | H36: -
A37: 29. | B37: - | C37: - | D37: - | E37: 1 | F37: 1 | G37: - | H37: -
A38: 30. | B38: - | C38: - | D38: - | E38: 1 | F38: - | G38: - | H38: -
A39: 30. | B39: - | C39: - | D39: 1 | E39: 1 | F39: - | G39: - | H39: -
A40: Su. | B40: =SUM(B9:B39) -> 01:20:00 | C40: 1 | D40: 7 | E40: 24 | F40: 27 | G40: 4 | H40: 0
B42: Anzahl der Nebeltage : | E42: =SUM(C40) -> 1
B43: Anzahl der Tage Sicht >= 50 km : | E43: =SUM(G40) -> 4

Sheet Monatsdiagramm
A1: Klimadiagramm | C1: Wetterstation Köttewitz | I1: (211 m ü. NHN)
A3: Oktober 2014
C5: aktuell | D5: langj. Mittel | E5: Abw. vom lj. Mittel
B6: höchste Temperatur (°C): | C6: =MAX('Daten für Diagr.'!C2:C32) -> 20.2 | D6: am | E6: 2014-10-19
B7: mittlere Temperatur (°C): | C7: ='Daten für Diagr.'!B33 -> 11.60967742 | D7: =Kurztabelle!B48 -> 9.8 | E7: =C7-D7 -> 1.809677419 | F7: K
B8: tiefste Temperatur (°C): | C8: =MIN('Daten für Diagr.'!D2:D32) -> 1.2 | D8: am | E8: 2014-10-29
B9: Niederschlagshöhe (mm): | C9: =Kurztabelle!I43 -> 48.7 | D9: =Kurztabelle!B49 -> 43 | E9: =100/D9*C9 -> 113.255814 | F9: %
B10: Sonnenscheindauer (Std.)*: | C10: =Kurztabelle!L43 -> 52.1 | D10: =Kurztabelle!B50 -> 120 | E10: =100/D10*C10 -> 43.41666667 | F10: %
A66: *Die Wetterstation kann, durch geographische Hindernisse, nicht die maximal mögliche Sonnenscheindauer aufzeichnen. Es gilt ein Übergangsprozentsatz von: Dez 30 %; Okt/Nov & Jan/Feb 40 %; Mär & Sep 65 %; Apr 80 %; Mai - August 90 %.
A67: Diese Werte entsprechend annähernd 100 % (Normalwert Köttewitz). Nach 10 Jahren erfolgt die Umstellung des Prozentsatzes nach der örtlichen Aufzeichnung.

Sheet Daten für Diagr.
B1: Td | C1: Tmax | D1: Tmin | E1: RR | F1: Schnee | G1: Sonne | H1: Luftdr. | I1: MWT | J1: GWL | K1: Name | L1: Sonstiges
A2: 2014-10-01 | B2: 15.4 | C2: 19.9 | D2: 11.7 | G2: 1.7 | H2: 1026.6 | I2: 12.05 | J2: BM | K2: H Lutz | L2: Leicht schwül.
A3: 2014-10-02 | B3: 14 | C3: 19.3 | D3: 11.4 | G3: 1.8 | H3: 1029 | I3: 11.9 | L3: Von 22:40 Uhr - 23:59 Uhr Bodennebelschwaden (WW 11). Leicht schwül.
A4: 2014-10-03 | B4: 11.8 | C4: 18 | D4: 7.4 | G4: 5.4 | H4: 1027.6 | I4: 11.75 | J4: HFa | K4: H Nikolai | L4: Von 09:10 Uhr - 10:29 Uhr leichter Nebel (WW 45). Von 00:00 Uhr - 09:09 Uhr Uhr Bodennebelschwaden (WW 11).
A5: 2014-10-04 | B5: 10.7 | C5: 16.8 | D5: 6.6 | G5: 4.6 | H5: 1022.3 | I5: 11.6
A6: 2014-10-05 | B6: 11.7 | C6: 15.8 | D6: 7 | G6: 1.4 | H6: 1019.2 | I6: 11.45
A7: 2014-10-06 | B7: 12.1 | C7: 16.2 | D7: 8.9 | G7: 1.4 | H7: 1016.1 | I7: 11.3 | J7: U
A8: 2014-10-07 | B8: 13.1 | C8: 15.7 | D8: 10.7 | G8: 1 | H8: 1011.1 | I8: 11.15 | J8: Wz | K8: T Katrin
A9: 2014-10-08 | B9: 14.3 | C9: 16.6 | D9: 12.5 | E9: 1.5 | G9: 0.3 | H9: 1012.5 | I9: 11 | J9: SWz
A10: 2014-10-09 | B10: 15.7 | C10: 20 | D10: 12.6 | G10: 4.9 | H10: 1010.7 | I10: 10.85 | L10: Leicht schwül.
A11: 2014-10-10 | B11: 14.5 | C11: 18.1 | D11: 11.7 | H11: 1015.9 | I11: 10.7 | L11: Leicht schwül.
A12: 2014-10-11 | B12: 15.8 | C12: 19.7 | D12: 12.8 | E12: 1.1 | G12: 0.2 | H12: 1014 | I12: 10.55 | L12: Leicht schwül.
A13: 2014-10-12 | B13: 14.3 | C13: 18.6 | D13: 11.1 | G13: 1.8 | H13: 1015.1 | I13: 10.4
A14: 2014-10-13 | B14: 14.8 | C14: 18.9 | D14: 11 | E14: 11.8 | G14: 0.9 | H14: 1009.4 | I14: 10.25 | K14: T Livia | L14: Von 23:50 Uhr - 23:59 Uhr leichter Regen (WW 61). Leicht schwül.
A15: 2014-10-14 | B15: 14.5 | C15: 19.1 | D15: 10.7 | E15: 2.8 | G15: 1.7 | H15: 1009.1 | I15: 10.1 | J15: Ws | L15: Von 03:10 Uhr - 04:09 Uhr starker Regen (WW 65). Von 00:00 Uhr - 03:09 Uhr; 04:10 Uhr - 05:29 Uhr mäßiger Regen (WW 63). Von 05:30 Uhr - 06:59 Uhr leichter Regen (WW 61).
A16: 2014-10-15 | B16: 12.7 | C16: 17.4 | D16: 9.4 | E16: 9.7 | G16: 1.3 | H16: 1008.1 | I16: 9.95 | L16: 06:01 Uhr: Donner hörbar (WW 92). Von 05:40 Uhr - 06:29 Uhr; 07:40 Uhr - 08:49 Uhr; 17:30 Uhr - 18:09 Uhr starker Regenschauer (WW 81).
A17: 2014-10-16 | B17: 12.6 | C17: 17.6 | D17: 8.7 | E17: 1.8 | G17: 1 | H17: 1007.6 | I17: 9.8 | L17: Von 21:20 Uhr - 21:59 Uhr starker Regenschauer (WW 81). Von 06:20 Uhr - 07:19 Uhr mäßiger Regen (WW 63). Von 07:20 Uhr - 07:59 Uhr leichter Regen (WW 61).
A18: 2014-10-17 | B18: 13.6 | C18: 16.6 | D18: 11.7 | E18: 0.1 | G18: 0.3 | H18: 1012.9 | I18: 9.65 | L18: Gegen 15:00 Uhr leichter Regen (WW 61).
A19: 2014-10-18 | B19: 13.4 | C19: 18.3 | D19: 9.9 | G19: 1.5 | H19: 1023.4 | I19: 9.5 | J19: SWa | K19: H Oz
A20: 2014-10-19 | B20: 14.8 | C20: 20.2 | D20: 10 | E20: 2.9 | G20: 3.3 | H20: 1018.8 | I20: 9.35 | L20: Leicht schwül.
A21: 2014-10-20 | B21: 14.7 | C21: 18.3 | D21: 11.8 | G21: 3.4 | H21: 1018.4 | I21: 9.2 | J21: Wz | K21: T Noa | L21: Von 02:50 Uhr - 03:49 Uhr starker Regen (WW 65). Von 03:50 Uhr - 04:29 Uhr leichter Regen (WW 61).
A22: 2014-10-21 | B22: 12.5 | C22: 15.9 | D22: 9.1 | E22: 4 | G22: 0.8 | H22: 1007.4 | I22: 9.05 | L22: Gegen 18:00 Uhr leichter Regenschauer (WW 80). Von 20:00 Uhr - 20:29 Uhr starker Regen (WW 65). Von 20:30 Uhr - 23:59 Uhr mäßiger Regen, unterbrochen (WW 62).
A23: 2014-10-22 | B23: 7.3 | C23: 9.3 | D23: 4.6 | E23: 12.8 | H23: 1006.5 | I23: 8.9 | J23: NWz | K23: Ex - Gonzalo | L23: Von 01:10 Uhr - 01:29 Uhr starker Regen (WW 65). Von 01:30 Uhr - 01:59 Uhr mäßiger Regen (WW 63). Von 00:00 Uhr - 01:09 Uhr; 09:00 Uhr - 14:29 Uhr; 19:40 Uhr - 23:09 Uhr mäßiger Regen, unterbrochen (WW 62). Von 02:00 Uhr - 02:40 Uhr; 23:40 Uhr - 23:59 Uhr leichter Regen (WW 61).
A24: 2014-10-23 | B24: 9.8 | C24: 11 | D24: 8.3 | E24: 0.2 | H24: 1019.5 | I24: 8.75 | J24: Ww | L24: Von 00:00 Uhr - 00:29 Uhr; Gegen 15:00 Uhr leichter Regen (WW 61).
A25: 2014-10-24 | B25: 7.5 | C25: 9.8 | D25: 3.3 | G25: 0.2 | H25: 1024.2 | I25: 8.6
A26: 2014-10-25 | B26: 5.9 | C26: 9.7 | D26: 1.5 | G26: 1.1 | H26: 1022.6 | I26: 8.45 | J26: SWa | K26: H Pitter
A27: 2014-10-26 | B27: 9.1 | C27: 12.9 | D27: 5.9 | G27: 1 | H27: 1027.6 | I27: 8.3
A28: 2014-10-27 | B28: 6.8 | C28: 11.8 | D28: 4.1 | G28: 3.2 | H28: 1028.5 | I28: 8.15 | J28: SEa
A29: 2014-10-28 | B29: 5.4 | C29: 11 | D29: 2.6 | G29: 3.3 | H29: 1023.4 | I29: 8
A30: 2014-10-29 | B30: 4.6 | C30: 8.6 | D30: 1.2 | G30: 3.2 | H30: 1019.8 | I30: 7.85 | J30: SWa | K30: H Quinn
A31: 2014-10-30 | B31: 7.1 | C31: 9.3 | D31: 4.2 | H31: 1025.4 | I31: 7.7
A32: 2014-10-31 | B32: 9.4 | C32: 14.1 | D32: 6.6 | G32: 1.3 | H32: 1026.3 | I32: 7.55
A33: Durchschnitt | B33: =AVERAGE(B2:B32) -> 11.60967742 | C33: =AVERAGE(C2:C32) -> 15.62903226 | D33: =AVERAGE(D2:D32) -> 8.35483871 | E33: - | G33: =AVERAGE(G2:G32) -> 1.925925926 | H33: =AVERAGE(H2:H32) -> 1018.032258 | I33: =AVERAGE(I2:I32) -> 9.8
A34: Mittel | B34: 9.8 | E34: 43 | F34: - | G34: 120 | H34: 1017.2
A90: 1
A91: 2
A92: 3
A93: 4
A94: 5
A95: 6
A96: 7
A97: 8
A98: 9
A99: 10
A100: 11
A101: 12
A102: 13
A103: 14
A104: 15
A105: 16
A106: 17
A107: 18
A108: 19
A109: 20
A110: 21
A111: 22
A112: 23
A113: 24
A114: 25
A115: 26
A116: 27
A117: 28
A118: 29
A119: 30
A120: 31

Sheet Erdbodentem.
E1: Erdbodentemperatur
B5: Wetterstation: Köttewitz | F5: Monat: | G5: Oktober | K5: Jahr: | L5: 2014
A7: Dat. | B7: 6 Uhr | C7: 7 Uhr | D7: 11 Uh | E7: 12 Uhr | F7: 19 Uhr | H7: NN | I7: 10 °C -
I8: Eindringtiefe
A9: 01. | B9: > 10 °C | D9: - | F9: - | H9: n | I9: > 1 m
A10: 02. | B10: 13,5 °C/14,9 °C/ 16,4 °C | D10: - | F10: - | H10: n | I10: > 1 m
A11: 03. | B11: - | D11: - | F11: - | H11: - | I11: -
A12: 04. | B12: > 10 °C | D12: - | F12: - | H12: h | I12: > 1 m
A13: 05. | B13: - | D13: - | F13: - | H13: - | I13: -
A14: 06. | B14: 10,5 °C/12,4 °C/14,6 °C | D14: - | F14: - | H14: n | I14: > 1 m
A15: 07. | B15: - | D15: - | F15: - | H15: n | I15: > 1 m
A16: 08. | B16: 12,5 °C/13,2 °C/14,5 °C | D16: - | F16: - | H16: t | I16: > 1 m
A17: 09. | B17: 13,0 °C/13,4 °C/14,8 °C | D17: - | F17: - | H17: n | I17: > 1 m
A18: 10. | B18: 12,9 °C/13,8 °C/15,4 °C | D18: - | F18: - | H18: t | I18: > 1 m
A19: 11. | B19: - | D19: - | F19: - | H19: t | I19: > 1 m
A20: 12. | B20: - | D20: - | F20: - | H20: n | I20: > 1 m
A21: 13. | B21: 11,2 °C/13,4 °C/15,4 °C | D21: - | F21: - | H21: n | I21: > 1 m
A22: 14. | B22: - | D22: - | F22: - | H22: n | I22: > 1 m
A23: 15. | B23: - | D23: - | F23: - | H23: t | I23: > 1 m
A24: 16. | B24: - | D24: - | F24: - | H24: t | I24: > 1 m
A25: 17. | B25: - | D25: - | F25: - | H25: n | I25: > 1 m
A26: 18. | B26: - | D26: - | F26: - | H26: n | I26: > 1 m
A27: 19. | B27: - | D27: - | F27: - | H27: h | I27: > 1 m
A28: 20. | B28: - | D28: - | F28: - | H28: n | I28: > 1 m
A29: 21. | B29: - | D29: - | F29: - | H29: t | I29: > 1 m
A30: 22. | B30: - | D30: - | F30: - | H30: t | I30: > 1 m
A31: 23. | B31: - | D31: - | F31: - | H31: t | I31: > 1 m
A32: 24. | B32: - | D32: - | F32: - | H32: - | I32: -
A33: 25. | B33: 7,5 °C/8,6 °C/13,3 °C | D33: - | F33: - | H33: n | I33: Ab 29 cm
A34: 26. | B34: - | D34: - | F34: - | H34: - | I34: -
A35: 27. | B35: 7,6 °C/9,3 °C/12,7 °C | D35: - | F35: - | H35: n | I35: Ab 26 cm
A36: 28. | B36: 5,7 °C/7,5 °C/11,3 °C | D36: - | F36: - | H36: h | I36: Ab 40 cm
A37: 29. | B37: 4,2 °C/5,9 °C/11,4 °C | D37: - | F37: - | H37: h | I37: Ab 42 cm
A38: 30. | B38: - | D38: - | F38: - | H38: - | I38: -
A39: 31. | B39: - | D39: - | F39: - | H39: - | I39: -
B41: Temperatur - 10 cm/Temperatur - 20 cm/Temperatur -50 cm
